bitfinex/quotes_SOLUSD_20250719
["timestamp","ask_amount","ask_price","bid_price","bid_amount"]
[1752926969766,0.06,176.38,176.37,97.17726111]
[1752926970846,0.06,176.38,176.37,190.44715961]
[1752926971049,0.06,176.38,176.37,191.42006976]
[1752926971941,0.06,176.4,176.39,55.87027126]
[1752926972141,0.06,176.4,176.39,97.11719682]
[1752926974751,0.06,176.4,176.39,97.09719682]
[1752926975742,0.06,176.4,176.39,17.35160953]
[1752926975946,0.06,176.4,176.39,57.44468397]
[1752926976968,10.81452153,176.4,176.39,16.78468397]
[1752926977170,10.81452153,176.4,176.34,16.78468397]
[1752926977374,5.08558729,176.37,176.35,40.66]
[1752926977574,5.08558729,176.37,176.36,16.78468397]
[1752926978861,5.08558729,176.37,176.34,40.66]
[1752926979070,14.2323356,176.4,176.35,16.78468397]
[1752926979271,5.08558729,176.36,176.35,16.78468397]
[1752926981167,10.75580729,176.36,176.35,16.78468397]
[1752926982375,11.43580729,176.36,176.35,16.78468397]
[1752926982988,25.6113573,176.36,176.34,16.78468397]
[1752926983148,5.76558729,176.35,176.32,57.46468397]
[1752926983348,5.08558729,176.33,176.32,57.46468397]
[1752926983549,5.76558729,176.33,176.32,16.78468397]
[1752926985082,5.76558729,176.33,176.31,40.68]
[1752926985261,11.43709364,176.32,176.31,57.46468397]
[1752926985791,0.68,176.32,176.31,57.46468397]
[1752926985951,5.67124727,176.33,176.31,57.46468397]
[1752926986146,6.35124727,176.33,176.31,57.46468397]
[1752926986377,5.08558729,176.36,176.32,16.78468397]
[1752926986670,0.68,176.35,176.34,16.78468397]
[1752926988059,6.35054153,176.35,176.34,16.78468397]
[1752926988684,6.35054153,176.35,176.34,16.81468397]
[1752926989484,6.35054153,176.35,176.34,0.03]
[1752926989485,11.43612882,176.35,176.34,0.03]
[1752926992970,9.47639996,176.35,176.34,0.03]
[1752926997197,5.67054153,176.35,176.34,16.81468397]
[1752926998163,8.7961402,176.36,176.34,16.81468397]
[1752926998567,9.5061402,176.36,176.34,16.81468397]
[1752926998968,6.38028177,176.36,176.34,16.81468397]
[1752926999282,8.7961402,176.36,176.34,16.81468397]
[1752926999484,3.83585843,176.35,176.34,16.81468397]
[1752926999674,8.7961402,176.36,176.34,16.81468397]
[1752927000069,9.5061402,176.36,176.34,16.81468397]
[1752927000789,5.67028177,176.36,176.34,16.81468397]
[1752927001109,8.79511405,176.39,176.36,16.78468397]
[1752927001263,5.66925562,176.39,176.38,16.78468397]
[1752927001892,9.50511405,176.39,176.38,16.78468397]
[1752927002090,5.66925562,176.39,176.38,16.78468397]
[1752927002388,8.79511405,176.39,176.38,16.78468397]
[1752927002587,9.50511405,176.39,176.38,16.78468397]
[1752927002789,6.37925562,176.39,176.38,16.78468397]
[1752927002970,5.66925562,176.39,176.38,16.78468397]
[1752927004479,8.79511405,176.39,176.38,16.78468397]
[1752927004681,5.66925562,176.39,176.38,16.78468397]
[1752927004990,23.67825311,176.39,176.34,87.63]
[1752927005193,19.84239468,176.39,176.35,16.78468397]
[1752927005399,3.12585843,176.36,176.35,16.78468397]
[1752927005571,3.83585843,176.36,176.35,16.78468397]
[1752927005775,3.12585843,176.36,176.35,16.78468397]
[1752927006401,3.12585843,176.37,176.35,16.78468397]
[1752927006701,8.79575693,176.37,176.36,57.34468397]
[1752927007998,5.6698985,176.37,176.36,57.34468397]
[1752927008986,8.79575693,176.37,176.36,57.34468397]
[1752927009596,9.50575693,176.37,176.36,57.34468397]
[1752927010897,9.50575693,176.37,176.36,16.78468397]
[1752927011100,8.79575693,176.37,176.36,16.78468397]
[1752927011915,9.50575693,176.37,176.36,16.78468397]
[1752927012114,11.14175693,176.37,176.35,0.03]
[1752927012282,3.83585843,176.36,176.35,0.03]
[1752927012810,3.83585843,176.36,176.34,1e-08]
[1752927012982,7.8058985,176.37,176.34,1e-08]
[1752927012983,3.83585843,176.35,176.34,1e-08]
[1752927013387,3.83585843,176.35,176.3,0.03]
[1752927013388,32.96171686,176.35,176.3,0.03]
[1752927013594,6.25171686,176.31,176.3,0.03]
[1752927014009,12.63354489,176.31,176.3,0.03]
[1752927015797,6.38182803,176.31,176.3,0.03]
[1752927015982,9.50768646,176.31,176.3,0.03]
[1752927017202,0.71,176.33,176.3,0.03]
[1752927017409,3.12585843,176.31,176.3,0.03]
[1752927017703,0.71,176.33,176.3,0.03]
[1752927017905,3.12585843,176.31,176.3,0.03]
[1752927018397,3.83585843,176.31,176.3,0.03]
[1752927019193,9.50768646,176.31,176.3,0.03]
[1752927020090,6.38182803,176.31,176.3,0.03]
[1752927020297,9.50768646,176.31,176.3,0.03]
[1752927022088,8.79768646,176.31,176.3,0.03]
[1752927023115,0.69,176.36,176.3,0.75]
[1752927023324,3.12585843,176.33,176.31,16.78468397]
[1752927023613,3.12585843,176.34,176.32,0.72]
[1752927023810,6.36022,176.36,176.32,0.72]
[1752927024010,8.79607843,176.36,176.33,0.72]
[1752927024388,3.12585843,176.35,176.32,16.78468397]
[1752927024584,3.12585843,176.33,176.31,41.2]
[1752927024785,0.69,176.33,176.32,16.78468397]
[1752927024998,3.12585843,176.33,176.32,16.78468397]
[1752927025210,14.17427618,176.38,176.32,17.50468397]
[1752927025211,8.79693776,176.34,176.32,17.50468397]
[1752927025601,8.79693776,176.34,176.32,16.78468397]
[1752927025811,3.12585843,176.33,176.31,41.2]
[1752927025991,3.12585843,176.32,176.31,41.2]
[1752927026196,3.81585843,176.32,176.31,41.2]
[1752927026924,3.81585843,176.32,176.3,0.03]
[1752927027092,0.69,176.32,176.3,0.03]
[1752927027293,5.67182803,176.31,176.3,0.03]
[1752927027510,8.79768646,176.31,176.3,0.03]
[1752927028897,8.79747363,176.32,176.3,0.75]
[1752927029306,8.79747363,176.32,176.3,0.03]
[1752927029889,5.6708631,176.34,176.3,0.03]
[1752927030220,3.12585843,176.33,176.31,0.72]
[1752927031013,3.12585843,176.32,176.31,16.78468397]
[1752927031904,5.67147162,176.33,176.31,17.50468397]
[1752927032201,8.79733005,176.33,176.31,17.50468397]
[1752927033722,3.12585843,176.32,176.31,16.78468397]
[1752927033922,3.12585843,176.32,176.3,0.03]
[1752927033923,3.81585843,176.32,176.3,0.03]
[1752927034106,3.12585843,176.31,176.3,0.03]
[1752927036325,8.79768646,176.31,176.3,0.03]
[1752927036521,12.61354489,176.31,176.3,0.03]
[1752927036722,55.15225511,176.31,176.26,0.03]
[1752927037021,3.12585843,176.27,176.26,0.03]
[1752927037518,3.81585843,176.27,176.26,0.03]
[1752927037712,0.69,176.27,176.26,0.03]
[1752927037914,3.12585843,176.27,176.26,0.03]
[1752927038315,5.6731151,176.27,176.26,0.03]
[1752927038503,8.79897353,176.27,176.26,0.03]
[1752927039408,3.12585843,176.27,176.26,0.03]
[1752927040127,3.81585843,176.27,176.26,0.03]
[1752927041517,9.48897353,176.27,176.26,0.03]
[1752927042228,8.79897353,176.27,176.26,0.03]
[1752927042724,3.12585843,176.28,176.27,16.78468397]
[1752927042926,3.12585843,176.3,176.27,16.78468397]
[1752927043116,3.12585843,176.31,176.28,0.72]
[1752927043426,0.69,176.31,176.27,16.78468397]
[1752927043625,3.12585843,176.31,176.28,0.72]
[1752927043803,3.12585843,176.31,176.29,0.72]
[1752927044002,3.12585843,176.31,176.29,41.78]
[1752927044824,3.12585843,176.3,176.27,16.78468397]
[1752927045027,3.12585843,176.28,176.27,16.78468397]
[1752927045404,3.12585843,176.29,176.27,16.78468397]
[1752927045726,8.79845783,176.29,176.27,16.78468397]
[1752927047527,3.81585843,176.28,176.26,41.09]
[1752927047731,3.12585843,176.27,176.26,57.87468397]
[1752927048119,3.81585843,176.27,176.26,0.03]
[1752927049522,9.48897353,176.27,176.26,0.03]
[1752927055512,9.48897353,176.27,176.25,0.03]
[1752927055839,3.84585843,176.26,176.25,0.03]
[1752927056440,4.34585843,176.26,176.25,0.03]
[1752927056734,9.51929539,176.26,176.25,0.03]
[1752927059929,23.70288781,176.26,176.21,0.03]
[1752927060135,6.25171686,176.22,176.21,0.03]
[1752927060516,6.97171686,176.22,176.21,0.03]
[1752927061018,6.97171686,176.22,176.21,1e-08]
[1752927061423,33.47171686,176.22,176.17,0.1]
[1752927061624,29.12585843,176.19,176.09,1.6147]
[1752927061830,29.12585843,176.19,176.1,16.78468397]
[1752927061831,8.80417185,176.11,176.1,16.78468397]
[1752927062141,8.80417185,176.11,176.1,17.47468397]
[1752927062631,5.67697984,176.15,176.1,17.47468397]
[1752927062843,3.12585843,176.12,176.11,17.47468397]
[1752927063734,3.12585843,176.13,176.11,17.47468397]
[1752927063925,5.67601316,176.18,176.12,17.47468397]
[1752927064135,5.67601316,176.18,176.13,0.69]
[1752927064136,3.12585843,176.16,176.13,0.69]
[1752927064331,3.12585843,176.15,176.14,16.78468397]
[1752927064630,5.67601316,176.18,176.14,17.47468397]
[1752927064848,5.67601316,176.18,176.16,16.78468397]
[1752927064849,3.12585843,176.18,176.16,16.78468397]
[1752927065163,3.12585843,176.17,176.13,16.78468397]
[1752927065725,3.12585843,176.17,176.14,0.69]
[1752927065931,3.12585843,176.16,176.14,0.69]
[1752927066124,3.12585843,176.15,176.14,17.47468397]
[1752927066747,3.12585843,176.15,176.14,0.69]
[1752927066961,3.12585843,176.15,176.12,17.47468397]
[1752927067145,3.12585843,176.13,176.11,17.47468397]
[1752927067339,3.12585843,176.12,176.11,17.47468397]
[1752927068646,8.80380528,176.12,176.11,17.47468397]
[1752927068944,3.12585843,176.12,176.11,17.47468397]
[1752927069328,3.12585843,176.13,176.11,17.47468397]
[1752927069523,3.12585843,176.15,176.12,17.47468397]
[1752927069838,3.12585843,176.15,176.13,0.69]
[1752927070022,3.12585843,176.14,176.13,17.47468397]
[1752927072132,26.72,176.21,176.14,16.78468397]
[1752927072327,3.12585843,176.17,176.15,0.69]
[1752927072551,3.12585843,176.17,176.16,0.69]
[1752927074065,8.80219378,176.17,176.16,0.69]
[1752927074371,5.67633535,176.17,176.16,0.69]
[1752927074659,8.80219378,176.17,176.16,0.69]
[1752927075760,8.83219378,176.17,176.16,0.69]
[1752927076876,8.83219378,176.17,176.14,17.47468397]
[1752927077166,3.12585843,176.16,176.14,17.47468397]
[1752927077371,3.12585843,176.16,176.15,0.69]
[1752927078359,8.80251601,176.16,176.15,0.69]
[1752927079441,9.52251601,176.16,176.12,0.69]
[1752927079654,3.12585843,176.13,176.12,40.86]
[1752927080057,3.12585843,176.13,176.1,17.53468397]
[1752927080290,3.12585843,176.11,176.1,16.84468397]
[1752927080494,9.52412769,176.11,176.1,0.06]
[1752927081553,8.80412769,176.11,176.1,0.06]
[1752927082055,3.12585843,176.12,176.1,0.75]
[1752927082258,3.12585843,176.13,176.1,0.75]
[1752927082470,3.12585843,176.13,176.11,16.78468397]
[1752927082766,3.12585843,176.14,176.12,0.69]
[1752927082942,8.8032097,176.14,176.11,16.78468397]
[1752927083141,8.8032097,176.14,176.12,0.68]
[1752927083763,3.12585843,176.13,176.12,0.68]
[1752927083945,3.12585843,176.13,176.11,16.78468397]
[1752927084151,3.12585843,176.12,176.1,40.92]
[1752927084351,3.12585843,176.11,176.1,40.92]
[1752927084664,8.80412769,176.11,176.1,40.92]
[1752927085238,9.47412769,176.11,176.1,0.06]
[1752927085869,8.80412769,176.11,176.1,0.06]
[1752927087072,9.47412769,176.11,176.1,0.06]
[1752927089459,5.67826926,176.11,176.1,0.06]
[1752927089641,8.80412769,176.11,176.1,0.06]
[1752927090952,8.80412769,176.11,176.1,0.74]
[1752927091160,9.47412769,176.11,176.1,0.06]
[1752927092253,8.80412769,176.11,176.1,0.06]
[1752927093071,9.47412769,176.11,176.1,0.06]
[1752927093865,5.67826926,176.11,176.1,0.06]
[1752927094165,8.80385397,176.12,176.1,0.74]
[1752927094372,5.67799554,176.12,176.1,0.74]
[1752927094758,5.67799554,176.12,176.11,0.68]
[1752927094958,14.22145772,176.17,176.11,0.68]
[1752927094959,5.706446,176.17,176.12,16.78468397]
[1752927095162,0.03,176.17,176.15,16.78468397]
[1752927095366,0.03,176.17,176.16,0.68]
[1752927095559,0.03,176.17,176.16,17.46468397]
[1752927095772,0.03,176.17,176.16,20.5905424]
[1752927095974,3.15585843,176.21,176.16,20.5905424]
[1752927095975,0.03,176.21,176.16,54.6205424]
[1752927096156,0.03,176.21,176.2,45.9105424]
[1752927096362,0.03,176.21,176.2,88.13807928]
[1752927096561,0.03,176.21,176.2,84.44468397]
[1752927098468,0.03,176.21,176.2,87.5705424]
[1752927098973,0.03,176.21,176.2,84.44468397]
[1752927099271,0.03,176.21,176.2,87.5705424]
[1752927099470,0.03,176.21,176.2,121.6005424]
[1752927100047,0.03,176.21,176.2,118.47468397]
[1752927100251,0.03,176.21,176.2,87.5705424]
[1752927100459,0.03,176.21,176.2,85.01222085]
[1752927100652,0.03,176.21,176.2,88.13807928]
[1752927100852,0.03,176.21,176.2,88.07807928]
[1752927104974,0.03,176.21,176.2,84.95222085]
[1752927105377,0.03,176.21,176.2,88.07807928]
[1752927110479,0.03,176.21,176.2,122.10807928]
[1752927110675,0.03,176.21,176.2,123.1025424]
[1752927111079,0.03,176.21,176.2,82.1825424]
[1752927111310,0.03,176.21,176.2,123.55007928]
[1752927111484,0.03,176.21,176.2,122.9825424]
[1752927112592,0.03,176.21,176.2,210.5825424]
[1752927116501,0.03,176.21,176.2,219.38376972]
[1752927116870,0.03,176.21,176.2,216.25791129]
[1752927123011,0.03,176.21,176.2,219.38376972]
[1752927123206,0.03,176.21,176.2,216.25791129]
[1752927126908,0.03,176.21,176.2,166.65668397]
[1752927127202,0.03,176.21,176.2,210.4025424]
[1752927129192,0.03,176.21,176.2,164.41468397]
[1752927129492,0.69,176.21,176.2,138.41468397]
[1752927129698,3.81585843,176.21,176.2,50.81468397]
[1752927129886,3.81585843,176.21,176.2,16.78468397]
[1752927130199,3.81585843,176.21,176.16,16.78468397]
[1752927130393,3.12585843,176.18,176.13,3.12585843]
[1752927130592,3.12585843,176.17,176.14,40.58]
[1752927130793,6.33665758,176.16,176.15,40.6]
[1752927131099,6.33665758,176.16,176.15,57.38468397]
[1752927131692,6.33665758,176.16,176.15,40.6]
[1752927131994,6.33665758,176.16,176.15,57.38468397]
[1752927132189,9.46251601,176.16,176.15,16.78468397]
[1752927132503,1.6006,176.2,176.16,16.78468397]
[1752927132504,3.12585843,176.17,176.16,16.78468397]
[1752927132800,1.6006,176.2,176.17,16.78468397]
[1752927132801,5.67536889,176.2,176.17,16.78468397]
[1752927133003,0.66,176.2,176.19,16.78468397]
[1752927135585,6.33536889,176.2,176.19,16.78468397]
[1752927136282,9.46122732,176.2,176.19,16.78468397]
[1752927136798,9.46122732,176.2,176.17,57.36468397]
[1752927136981,3.12585843,176.18,176.17,40.58]
[1752927137182,3.78585843,176.18,176.16,26.0]
[1752927137387,3.78585843,176.17,176.16,42.78468397]
[1752927137587,3.78585843,176.17,176.15,57.36468397]
[1752927137787,19.86379113,176.2,176.15,57.36468397]
[1752927137788,3.78585843,176.16,176.15,57.36468397]
[1752927138000,3.78585843,176.16,176.15,16.78468397]
[1752927139806,3.78585843,176.16,176.15,16.84468397]
[1752927139994,6.33536889,176.2,176.15,16.84468397]
[1752927140302,3.78585843,176.19,176.17,16.78468397]
[1752927140501,9.46187159,176.18,176.17,16.78468397]
[1752927140706,9.46187159,176.18,176.16,16.78468397]
[1752927140895,3.78585843,176.17,176.16,16.78468397]
[1752927141806,3.78585843,176.17,176.15,0.06]
[1752927142006,3.78585843,176.16,176.15,0.06]
[1752927142786,9.46251601,176.16,176.15,0.06]
[1752927150803,23.65415997,176.16,176.1,16.84468397]
[1752927151005,3.12585843,176.11,176.1,16.84468397]
[1752927151215,9.50412769,176.11,176.1,0.06]
[1752927158414,6.37826926,176.11,176.1,0.06]
[1752927158620,9.50412769,176.11,176.1,0.06]
[1752927159406,9.50412769,176.11,176.1,1e-08]
[1752927159709,49.98412769,176.11,176.1,1e-08]
[1752927161904,64.17980084,176.11,176.07,0.06]
[1752927162106,3.12585843,176.08,176.07,0.06]
[1752927162511,3.82585843,176.08,176.07,0.06]
[1752927163426,9.50509514,176.08,176.07,0.06]
[1752927166034,9.50509514,176.08,176.06,3.0]
[1752927166340,44.24585843,176.07,176.06,3.0]
[1752927166520,44.24585843,176.07,176.06,1e-08]
[1752927167308,44.24585843,176.07,175.97,0.1]
[1752927167309,3.12585843,176.03,175.97,0.1]
[1752927167518,3.12585843,175.98,175.97,0.1]
[1752927168420,3.12585843,175.98,175.97,17.54468397]
[1752927168643,3.12585843,175.98,175.97,43.54468397]
[1752927169346,5.67988185,176.06,175.98,16.78468397]
[1752927169553,3.12585843,176.02,176.0,16.78468397]
[1752927169732,3.12585843,176.02,176.01,0.66]
[1752927170144,3.12585843,176.02,175.97,0.1]
[1752927170320,3.12585843,175.98,175.97,0.1]
[1752927170818,0.7,176.04,175.98,16.78468397]
[1752927171037,5.68137317,176.02,175.99,0.66]
[1752927171238,3.12585843,176.01,175.97,0.1]
[1752927171417,5.67988185,176.06,176.01,16.78468397]
[1752927171616,3.12585843,176.05,176.02,0.66]
[1752927171832,3.12585843,176.05,176.03,0.66]
[1752927172034,3.12585843,176.04,176.03,0.66]
[1752927172824,3.12585843,176.04,176.01,17.44468397]
[1752927173029,3.12585843,176.04,176.02,0.66]
[1752927174164,3.80585843,176.03,175.99,0.66]
[1752927174320,3.12585843,176.0,175.99,17.44468397]
[1752927174515,3.12585843,176.0,175.99,16.78468397]
[1752927174739,0.68,176.03,175.99,16.78468397]
[1752927174937,3.12585843,176.0,175.99,17.44468397]
[1752927175622,5.68131861,176.02,175.99,17.44468397]
[1752927175623,3.12585843,176.02,175.99,17.44468397]
[1752927175829,3.12585843,176.02,176.0,0.66]
[1752927176041,3.12585843,176.02,175.99,16.78468397]
[1752927176223,3.12585843,176.02,176.01,0.66]
[1752927177632,6.35955926,176.07,176.01,0.66]
[1752927177849,3.12585843,176.04,176.01,0.66]
[1752927178151,3.12585843,176.05,176.02,16.78468397]
[1752927178365,3.12585843,176.04,176.02,17.44468397]
[1752927178729,5.67955926,176.07,176.03,0.66]
[1752927178924,3.12585843,176.05,176.03,0.66]
[1752927179331,3.12585843,176.05,176.04,0.66]
[1752927179536,5.67989423,176.06,176.04,0.66]
[1752927179760,3.12585843,176.05,176.04,0.66]
[1752927179949,3.12585843,176.05,176.02,16.78468397]
[1752927179950,3.12585843,176.05,176.02,17.44468397]
[1752927180144,5.67989423,176.06,176.03,0.66]
[1752927180339,3.12585843,176.05,176.03,0.66]
[1752927180862,3.12585843,176.04,176.01,17.44468397]
[1752927181233,3.12585843,176.02,176.0,16.78468397]
[1752927181536,3.12585843,176.01,175.98,26.66]
[1752927181747,3.12585843,176.0,175.98,26.66]
[1752927182353,3.12585843,176.01,175.99,17.44468397]
[1752927182533,3.12585843,176.01,175.99,16.78468397]
[1752927182857,3.12585843,176.0,175.97,0.1]
[1752927183167,3.12585843,175.98,175.97,0.1]
[1752927183666,8.80832234,175.98,175.97,0.1]
[1752927186169,0.68,175.99,175.97,0.1]
[1752927186335,8.80832234,175.98,175.97,0.1]
[1752927186656,3.12585843,176.0,175.97,0.76]
[1752927186869,3.12585843,176.0,175.98,0.66]
[1752927187161,3.12585843,175.99,175.98,0.66]
[1752927187466,3.12585843,175.99,175.97,0.1]
[1752927187636,3.12585843,175.98,175.97,0.1]
[1752927187837,3.12585843,176.0,175.97,0.76]
[1752927188036,3.12585843,176.0,175.98,0.66]
[1752927188752,3.12585843,176.0,175.97,26.1]
[1752927188946,3.12585843,176.01,175.99,0.66]
[1752927189333,3.12585843,176.01,175.97,0.1]
[1752927189334,3.12585843,176.0,175.97,0.1]
[1752927189539,5.71123971,176.02,175.97,0.76]
[1752927189540,3.12585843,175.99,175.97,0.76]
[1752927190029,3.12585843,175.98,175.97,0.1]
[1752927191350,3.80585843,175.98,175.97,0.1]
[1752927191728,9.48832234,175.98,175.97,0.1]
[1752927192138,8.80832234,175.98,175.97,0.1]
[1752927192459,3.12585843,175.98,175.97,0.1]
[1752927192957,0.03,176.02,175.97,0.1]
[1752927193140,46.11125683,176.02,175.98,0.66]
[1752927193346,3.12585843,175.99,175.97,0.1]
[1752927193539,3.12585843,175.98,175.97,0.1]
[1752927194157,8.80832234,175.98,175.97,0.1]
[1752927194362,3.12585843,175.98,175.97,0.1]
[1752927194541,5.6815676,176.01,175.97,0.76]
[1752927194735,3.12585843,175.98,175.97,0.76]
[1752927194938,3.12585843,175.98,175.97,0.1]
[1752927195345,41.08,176.0,175.97,0.1]
[1752927195546,3.12585843,175.98,175.97,0.1]
[1752927196336,8.80832234,175.98,175.97,0.1]
[1752927197958,5.68149536,176.01,175.97,0.76]
[1752927198138,3.12585843,176.0,175.98,0.66]
[1752927198954,3.12585843,175.99,175.97,0.1]
[1752927199154,3.12585843,175.98,175.97,0.1]
[1752927199354,3.80585843,175.98,175.97,0.1]
[1752927200254,9.48832234,175.98,175.97,0.1]
[1752927200846,3.12585843,175.93,175.92,0.1]
[1752927201960,3.80585843,175.93,175.92,0.1]
[1752927202271,9.48993732,175.93,175.92,0.1]
[1752927204264,23.70013455,175.93,175.89,0.06]
[1752927204443,41.12,175.92,175.89,0.06]
[1752927204648,3.12585843,175.9,175.89,0.06]
[1752927205144,44.24585843,175.9,175.89,0.06]
[1752927206148,49.93090675,175.9,175.89,0.06]
[1752927208067,8.81090675,175.9,175.89,0.06]
[1752927208258,3.12585843,175.9,175.89,0.06]
[1752927208461,43.54585843,175.9,175.89,0.06]
[1752927209174,44.26585843,175.9,175.89,0.06]
[1752927209882,44.76585843,175.9,175.89,0.06]
[1752927210055,44.26585843,175.9,175.89,0.06]
[1752927210255,49.95090675,175.9,175.89,0.06]
[1752927211761,9.53090675,175.9,175.89,0.06]
[1752927211961,49.95090675,175.9,175.89,0.06]
[1752927212850,9.53090675,175.9,175.89,0.06]
[1752927213172,5.68504832,175.9,175.89,0.06]
[1752927213371,49.23090675,175.9,175.89,0.06]
[1752927214067,49.95090675,175.9,175.89,0.06]
[1752927217676,9.53090675,175.9,175.89,0.06]
[1752927217871,49.95090675,175.9,175.89,0.06]
[1752927218173,49.23090675,175.9,175.89,0.06]
[1752927218374,49.95090675,175.9,175.89,0.06]
[1752927220568,50.45090675,175.9,175.89,0.06]
[1752927220768,49.95090675,175.9,175.89,0.06]
[1752927222384,9.53090675,175.9,175.89,0.06]
[1752927222560,49.95090675,175.9,175.89,0.06]
[1752927223683,49.95090675,175.9,175.88,3.0]
[1752927223866,3.84585843,175.89,175.88,3.0]
[1752927224065,0.72,175.89,175.88,3.0]
[1752927224268,3.84585843,175.89,175.88,3.0]
[1752927225171,9.53122996,175.89,175.88,3.0]
[1752927225761,5.68537153,175.89,175.88,3.0]
[1752927225969,8.81122996,175.89,175.88,3.0]
[1752927226288,9.53122996,175.89,175.88,3.0]
[1752927226466,49.95122996,175.89,175.88,3.0]
[1752927227068,50.45122996,175.89,175.88,3.0]
[1752927227482,49.95122996,175.89,175.88,3.0]
[1752927228266,64.1646588,175.89,175.83,0.68]
[1752927228466,3.12585843,175.84,175.8,7.3213]
[1752927228673,3.12585843,175.81,175.8,23.42598397]
[1752927229266,3.12585843,175.81,175.8,24.10598397]
[1752927229673,3.12585843,175.82,175.8,24.10598397]
[1752927229892,3.12585843,175.82,175.81,0.68]
[1752927230974,3.12585843,175.84,175.81,0.68]
[1752927231289,49.23315291,175.84,175.81,0.68]
[1752927231494,3.12585843,175.82,175.8,23.42598397]
[1752927231667,46.10729448,175.84,175.8,6.6413]
[1752927231871,46.10729448,175.84,175.81,0.68]
[1752927232071,3.12585843,175.83,175.81,0.68]
[1752927232394,3.12585843,175.83,175.82,0.68]
[1752927232591,46.10729448,175.84,175.82,0.68]
[1752927232897,46.10729448,175.84,175.8,7.3213]
[1752927233092,40.42,175.83,175.81,0.72]
[1752927233268,40.42,175.83,175.82,0.72]
[1752927233473,43.54585843,175.83,175.82,0.72]
[1752927233779,3.12585843,175.83,175.82,0.72]
[1752927235273,8.81317003,175.83,175.82,0.72]
[1752927236693,8.81317003,175.83,175.8,7.3613]
[1752927236898,3.12585843,175.82,175.8,7.3613]
[1752927237275,5.68795859,175.81,175.8,7.3613]
[1752927237687,8.81359796,175.82,175.8,7.3613]
[1752927237898,8.81359796,175.82,175.81,0.72]
[1752927238387,49.23359796,175.82,175.78,0.72]
[1752927238587,3.12585843,175.8,175.78,17.50468397]
[1752927238782,3.12585843,175.8,175.78,16.78468397]
[1752927238977,3.12585843,175.8,175.79,0.72]
[1752927239284,46.10773953,175.82,175.79,0.72]
[1752927239484,3.12585843,175.81,175.79,0.72]
[1752927239683,3.12585843,175.81,175.8,0.72]
[1752927240485,46.10773953,175.82,175.8,0.72]
[1752927240687,3.12585843,175.81,175.8,0.72]
[1752927241402,8.81381702,175.81,175.8,0.72]
[1752927242505,14.21553373,175.87,175.8,0.72]
[1752927242691,14.21553373,175.87,175.81,26.0]
[1752927242692,5.68601808,175.87,175.81,26.0]
[1752927242892,5.68537153,175.89,175.83,4.62845843]
[1752927243192,14.21320917,175.9,175.85,26.0]
[1752927243193,3.12585843,175.9,175.85,26.0]
[1752927243396,5.68504832,175.9,175.86,3.84585843]
[1752927243597,8.81090675,175.9,175.87,0.72]
[1752927243913,8.81090675,175.9,175.88,0.72]
[1752927244096,0.03,175.96,175.89,0.72]
[1752927244296,3.12585843,175.93,175.89,0.72]
[1752927244606,3.12585843,175.91,175.9,0.72]
[1752927244788,3.12585843,175.91,175.86,0.72]
[1752927244988,3.12585843,175.88,175.87,0.72]
[1752927245305,3.12585843,175.88,175.85,26.72]
[1752927245499,3.12585843,175.87,175.86,0.72]
[1752927246430,3.12585843,175.87,175.83,1.5026]
[1752927246590,3.12585843,175.84,175.82,7.0837]
[1752927246993,0.66,175.92,175.83,54.6605424]
[1752927247187,3.12585843,175.85,175.84,0.72]
[1752927247596,26.0,175.87,175.84,0.72]
[1752927248086,29.12585843,175.87,175.84,0.72]
[1752927248621,26.0,175.87,175.84,0.72]
[1752927248788,3.12585843,175.86,175.84,0.72]
[1752927250407,31.68615264,175.87,175.84,0.72]
[1752927250408,3.12585843,175.85,175.84,0.72]
[1752927250787,3.12585843,175.85,175.83,0.78]
[1752927251013,3.12585843,175.84,175.83,0.78]
[1752927251590,31.68615264,175.87,175.83,0.78]
[1752927251822,3.12585843,175.84,175.83,0.78]
[1752927252612,8.8128466,175.84,175.83,0.78]